Cogmind - Beta 16 @@@ ROGUE MODE // 2025.12.28 @ 17:08:45 // Winter2022/Polymind Player: Compilatron Result: Destroyed by S-27 Virus with Autogun Performance ------------- Evolutions (6) 3000 Regions Visited (6) 1200 Robots Destroyed (1) 5 Value Destroyed (67) 67 Prototype IDs (0) 0 Alien Tech Used (0) 0 Bonus (2704) 2704 TOTAL SCORE: 6676 Bonus ------- Polymind Skill 1120 Pacifist 1384 Entered Garrisons 200 Cogmind --------- Core Integrity 0/1150 Matter 0/0 Energy 99/100 System Corruption 11% Temperature Cool (0) Movement Core (50) Location -4/Garrison Parts ------- > --- POWER (1) -------- (None) > --- PROPULSION (2) --- (None) > --- UTILITY (2) ------ (None) > --- WEAPON (2) ------- (None) > --- INVENTORY (0) ---- (None) Peak State ------------ > --- POWER ------------ Light Antimatter Reactor > --- PROPULSION ------- Flexi-carbon Leg Flexi-carbon Leg > --- UTILITY ---------- Advanced Heat Sink Advanced Heat Sink > --- WEAPON ----------- Field Laser Plasma Rifle > --- INVENTORY -------- (None) [Rating: 35] Favorites ----------- Power Light Ion Engine Engine Light Ion Engine Reactor Light Antimatter Reactor Propulsion Wheel Leg Flexi-carbon Leg Wheel Wheel Utility Advanced Heat Sink Device Advanced Heat Sink Processor Terrain Scan Processor Protection Scrap Shield Weapon Welding Torch Energy Gun Subdweller Laser Special Weapon Welding Torch Build | -11 -10 -10 -7 -5 -4 -4 ------- Run | Yrd Mat Sub Scr Fac Fac Gar Slots Evolved . | . . . . . . . Power . | . . . . . . . Propulsion . | . . . . . . . Utility . | . . . . . . . Weapon . | . . . . . . . Parts Attached . | . . . . . . . Power . | . . . . . . . Engine . | . . . . . . . Core . | . . . . . . . Reactor . | . . . . . . . Propulsion . | . . . . . . . Treads . | . . . . . . . Leg . | . . . . . . . Wheel . | . . . . . . . Hover . | . . . . . . . Flight . | . . . . . . . Utility . | . . . . . . . Device . | . . . . . . . Storage . | . . . . . . . Processor . | . . . . . . . Hackware . | . . . . . . . Protection . | . . . . . . . Artifact . | . . . . . . . Weapon . | . . . . . . . Energy Gun . | . . . . . . . Energy Cannon . | . . . . . . . Ballistic Gun . | . . . . . . . Ballistic Cannon . | . . . . . . . Launcher . | . . . . . . . Special Weapon . | . . . . . . . Impact Weapon . | . . . . . . . Slashing Weapon . | . . . . . . . Piercing Weapon . | . . . . . . . Special Melee Weapon . | . . . . . . . Unidentified Prototypes . | . . . . . . . Parts Lost 3 | . . . . . 1 2 Power . | . . . . . . . Propulsion 1 | . . . . . . 1 Utility 1 | . . . . . . 1 Weapon 1 | . . . . . 1 . Highest Loss Streak 2 | . . . . . 1 2 To Critical Strikes . | . . . . . . . Average Backups . | . . . . . . . Power . | . . . . . . . Propulsion . | . . . . . . . Utility . | . . . . . . . Weapon . | . . . . . . . Tool/Special . | . . . . . . . Unused Backups . | . . . . . . . Power . | . . . . . . . Propulsion . | . . . . . . . Utility . | . . . . . . . Weapon . | . . . . . . . Tool/Special . | . . . . . . . Average Slot Usage (%) 84 | . 84 98 85 85 76 63 Engine 9 | . 11 14 14 14 4 . Reactor 2 | . . . . . 7 10 Leg 5 | . . . . . 14 21 Wheel 15 | . 23 26 14 14 4 . Device 25 | . 23 28 28 28 24 21 Processor 5 | . 11 12 . . . . Protection 4 | . . 1 14 14 4 . Energy Gun 8 | . . 1 14 14 15 10 Special Weapon 5 | . 11 12 . . . . Peak Build Rating 35 | . 8 14 14 14 35 30 Average Rating 13 | . 6 8 14 14 21 20 On Entrance 11 | . . 8 14 14 14 30 Avg Prop Armor Cover (%) . | . . . . . . . Naked Turns 84 | . 17 1 . . 31 35 Heaviest Build 30 | . 6 30 30 30 30 17 Greatest Support 40 | 3 20 20 20 20 40 40 Greatest Overweight (x) 1 | . . 1 1 1 1 . Average Overweight (x) . | . . . 1 1 . . Largest Inventory Capacity 2 | . . 2 2 2 2 1 Average Capacity . | . . . 2 2 1 . Most Carried 2 | . . 2 2 2 2 . Average Carried . | . . . 2 2 . . Final Capacity 2 | . . 2 2 2 1 . Final Carried 2 | . . 2 2 2 . . Class Distribution -------------------- 39% | Builder 30% | Subdweller 20% | Grunt 9% | Cogmind Dominant Class ---------------- Builder | -10/Materials Builder | -10/Subcaves Subdweller | -7/Scraptown Subdweller | -5/Factory Grunt | -4/Factory Grunt | -4/Garrison Resources | -11 -10 -10 -7 -5 -4 -4 ----------- Run | Yrd Mat Sub Scr Fac Fac Gar Matter Collected . | . . . . . . . Remotely . | . . . . . . . Salvage Created 102 | . . . . . 102 . Parts . | . . . . . . . Haulers Intercepted . | . . . . . . . Recyclers Shooed . | . . . . . . . Parts Field Recycled . | . . . . . . . Retrieved Matter . | . . . . . . . Parts Self-Destructed 4 | . . 4 . . . . Prevented . | . . . . . . . Parts Restored . | . . . . . . . Kills | -11 -10 -10 -7 -5 -4 -4 ------- Run | Yrd Mat Sub Scr Fac Fac Gar Combat Hostiles Destroyed 1 | . . . . . 1 . Guns 1 | . . . . . 1 . Classes Destroyed 1 | . . . . . 1 . Grunt 1 | . . . . . 1 . Best Kill Streak 1 | . . . . . 1 . Combat Bots Only 1 | . . . . . 1 . Max Kills in Single Turn 1 | . . . . . 1 . Gunslinging . | . . . . . . . Exploded . | . . . . . . . Melee . | . . . . . . . Uniques/NPCs Destroyed . | . . . . . . . Combat | -11 -10 -10 -7 -5 -4 -4 -------- Run | Yrd Mat Sub Scr Fac Fac Gar Hostile Shots Fired 88 | . . 4 . . 34 50 Missed 26 | . . 3 . . 10 13 Hits 62 | . . 1 . . 24 37 Projectile 62 | . . 1 . . 24 37 Critical Strikes 3 | . . . . . . 3 Damage Taken 1566 | . . 21 . . 721 824 Core 1160 | . . . . . 455 705 Absorbed by Shields . | . . . . . . . Core Remaining (%) 100 | 100 . . 100 100 . . Volleys Fired 8 | . . 5 . . 3 . Largest 2 | . . 1 . . 2 . Hottest 138 | . . 60 . . 138 . Shots Fired 11 | . . 5 . . 6 . Gun 7 | . . 1 . . 6 . Cannon . | . . . . . . . Launcher . | . . . . . . . Special 4 | . . 4 . . . . Kinetic . | . . . . . . . Thermal 11 | . . 5 . . 6 . Explosive . | . . . . . . . Electromagnetic . | . . . . . . . Robot Hit Streak 6 | . . . . . 6 . Robot Miss Streak . | . . . . . . . Penetration Max . | . . . . . . . Secondary Targets . | . . . . . . . Shots Hit Robots 6 | . . . . . 6 . Core Hits 4 | . . . . . 4 . Critical Kills . | . . . . . . . Critical Parts Destroyed . | . . . . . . . Critical Strikes 1 | . . . . . 1 . Burn 1 | . . . . . 1 . Melee Attacks . | . . . . . . . Impact . | . . . . . . . Slashing . | . . . . . . . Piercing . | . . . . . . . Sneak Attacks . | . . . . . . . Combat Hostiles . | . . . . . . . Follow-up Attacks . | . . . . . . . Damage Inflicted 221 | . . . . . 187 34 Guns 128 | . . . . . 128 . Cannons . | . . . . . . . Explosions . | . . . . . . . Melee . | . . . . . . . Ramming 93 | . . . . . 59 34 Kinetic . | . . . . . . . Thermal 128 | . . . . . 128 . Explosive . | . . . . . . . Electromagnetic . | . . . . . . . Impact . | . . . . . . . Slashing . | . . . . . . . Piercing . | . . . . . . . Highest Corruption 11 | . . . . . 3 11 Average Corruption 3 | . . . . . 2 4 Corruption Purged . | . . . . . . . Corruption Blocked . | . . . . . . . Effects 2 | . . . . . . 2 Message Errors 2 | . . . . . . 2 Overload Shots . | . . . . . . . Overflow Damage . | . . . . . . . Projectiles . | . . . . . . . Explosions . | . . . . . . . Melee . | . . . . . . . Knockbacks . | . . . . . . . Impact . | . . . . . . . Kinetic . | . . . . . . . Secondary . | . . . . . . . Self-Inflicted Damage 41 | . . . . . 25 16 Shots . | . . . . . . . Rammed 22 | . . . . . 15 7 Targets Rammed 22 | . . . . . 15 7 Kicked . | . . . . . . . Crushed . | . . . . . . . Highest Temperature 58 | . . 14 . . 58 . Average Temperature 41 | . . 10 . . 48 . Received Heat Transfer 162 | . . 6 . . 138 18 Siege Activations . | . . . . . . . Martial Activations . | . . . . . . . Shielding Activations . | . . . . . . . Robots Disrupted . | . . . . . . . Combat Hostiles . | . . . . . . . Robots Corrupted . | . . . . . . . Combat Hostiles . | . . . . . . . Parts Fried . | . . . . . . . Impact Corruptions . | . . . . . . . Robots Melted . | . . . . . . . Combat Hostiles . | . . . . . . . Parts Melted 1 | . . . . . 1 . Heat Transferred 335 | . . . . . 335 . Parts Sabotaged . | . . . . . . . Parts Stolen . | . . . . . . . Parts Stripped . | . . . . . . . Power Chain Reactions . | . . . . . . . Alert | -11 -10 -10 -7 -5 -4 -4 ------- Run | Yrd Mat Sub Scr Fac Fac Gar Maximum Alert Level . | . . . . . . . Low Security (%) 100 | . 100 . . 100 100 100 Level 1 . | . . . . . . . Level 2 . | . . . . . . . Level 3 . | . . . . . . . Level 4 . | . . . . . . . Level 5 . | . . . . . . . High Security . | . . . . . . . Max Security . | . . . . . . . Peak Influence 115 | . . . . . 20 115 Initial . | . . . . . . . Average 4 | . . . . . 1 14 Influence Increases 135 | . . . . . 20 115 Destroy 0b10 Robot/C 20 | . . . . . 20 . Anti-Garrison Action 100 | . . . . . . 100 Lose Combat Pursuer 15 | . . . . . . 15 Influence Decreases 20 | . . . . . 20 . Time Decay 20 | . . . . . 20 . Squads Dispatched . | . . . . . . . Investigation . | . . . . . . . Extermination . | . . . . . . . Reinforcement . | . . . . . . . Assault . | . . . . . . . Garrison . | . . . . . . . Intercept . | . . . . . . . Searches Triggered . | . . . . . . . Construction Impeded . | . . . . . . . Haulers Reinforced . | . . . . . . . Active Scanning Responses . | . . . . . . . Cargo Convoy Interrupts . | . . . . . . . Stealth | -11 -10 -10 -7 -5 -4 -4 --------- Run | Yrd Mat Sub Scr Fac Fac Gar Distress Signals . | . . . . . . . Communications Jammed . | . . . . . . . Distress Signals . | . . . . . . . Times Spotted 15 | . . 1 . . 4 10 Peak Tracking Total 8 | . . 1 . . 3 8 Tactical Retreats 1 | . . . . . . 1 Traps | -11 -10 -10 -7 -5 -4 -4 ------- Run | Yrd Mat Sub Scr Fac Fac Gar Traps Triggered 1 | . . . . . 1 . Indirectly . | . . . . . . . Trap Hack Attempts . | . . . . . . . Triggered . | . . . . . . . Disarmed . | . . . . . . . Reprogrammed . | . . . . . . . Reused . | . . . . . . . Traps Extracted . | . . . . . . . Installed . | . . . . . . . Triggered . | . . . . . . . Machines | -11 -10 -10 -7 -5 -4 -4 ---------- Run | Yrd Mat Sub Scr Fac Fac Gar Machines Disabled . | . . . . . . . Max in Single Turn . | . . . . . . . Machines Repaired . | . . . . . . . Machines Dismantled . | . . . . . . . Machines Sabotaged . | . . . . . . . Overloaded Fab Kills . | . . . . . . . Hacking | -11 -10 -10 -7 -5 -4 -4 --------- Run | Yrd Mat Sub Scr Fac Fac Gar Machines Accessed 4 | . 1 . . . 1 2 Terminals 3 | . 1 . . . . 2 Fabricators . | . . . . . . . Repair Stations . | . . . . . . . Recycling Units . | . . . . . . . Scanalyzers . | . . . . . . . Garrison Access 1 | . . . . . 1 . Total Hacks 9 | . 3 . . . 1 5 Successful 3 | . 2 . . . 1 . Failed 6 | . 1 . . . . 5 Catastrophic 2 | . . . . . . 2 Database Lockouts . | . . . . . . . Manual 3 | . 3 . . . . . Terminals 8 | . 3 . . . . 5 Fabricators . | . . . . . . . Repair Stations . | . . . . . . . Recycling Units . | . . . . . . . Scanalyzers . | . . . . . . . Garrison Access 1 | . . . . . 1 . Terminal Hacks . | . . . . . . . Fabricator Hacks . | . . . . . . . Repair Station Hacks . | . . . . . . . Recycling Unit Hacks . | . . . . . . . Scanalyzer . | . . . . . . . Garrison Access Hacks 1 | . . . . . 1 . Unlock Access 1 | . . . . . 1 . Unauthorized Hacks 2 | . 2 . . . . . Terminals 2 | . 2 . . . . . Botnet 1 | . 1 . . . . . Operators 1 | . 1 . . . . . Fabricators . | . . . . . . . Repair Stations . | . . . . . . . Recycling Units . | . . . . . . . Scanalyzers . | . . . . . . . Garrison Access . | . . . . . . . Data Cores Recovered . | . . . . . . . Used . | . . . . . . . Hacking Detections 4 | . 1 . . . 1 2 Full Trace Events 2 | . . . . . . 2 Feedback Events . | . . . . . . . Feedback Blocked . | . . . . . . . Robot Schematics Acquired . | . . . . . . . Robots Built . | . . . . . . . Authchips . | . . . . . . . Time . | . . . . . . . Total Robot Build Rating . | . . . . . . . Part Schematics Acquired . | . . . . . . . Parts Built . | . . . . . . . Authchips . | . . . . . . . Time . | . . . . . . . Total Part Build Rating . | . . . . . . . Part Studies Acquired . | . . . . . . . Parts Repaired . | . . . . . . . Time . | . . . . . . . Parts Recycled . | . . . . . . . Recycled Matter . | . . . . . . . Retrieved Matter . | . . . . . . . Retrieved Components . | . . . . . . . Parts Scanalyzed . | . . . . . . . Part Schematics Acquired . | . . . . . . . Parts Damaged . | . . . . . . . Bothacking | -11 -10 -10 -7 -5 -4 -4 ------------ Run | Yrd Mat Sub Scr Fac Fac Gar Used RIF Installer . | . . . . . . . Robots Hacked 2 | . 1 . . . 1 . Non-combat 1 | . 1 . . . . . Combat 1 | . . . . . 1 . Robot Hacks Applied 3 | . 1 . . . 2 . map_walls 1 | . 1 . . . . . find_shortcuts 1 | . . . . . 1 . find_garrison 1 | . . . . . 1 . Relay Couplers Released . | . . . . . . . Fabnet Peak Effective % . | . . . . . . . Robots Rewired . | . . . . . . . Allies Hacked . | . . . . . . . Hacks Repelled . | . . . . . . . Allies | -11 -10 -10 -7 -5 -4 -4 -------- Run | Yrd Mat Sub Scr Fac Fac Gar Total Allies . | . . . . . . . Largest Group . | . . . . . . . Highest-Rated Group . | . . . . . . . Highest-Rated Ally . | . . . . . . . Total Orders . | . . . . . . . Ally Attacks . | . . . . . . . Total Damage . | . . . . . . . Kills . | . . . . . . . Allies Corrupted . | . . . . . . . Allies Melted . | . . . . . . . Intel | -11 -10 -10 -7 -5 -4 -4 ------- Run | Yrd Mat Sub Scr Fac Fac Gar Active Infowar (turns) 478 | . 105 300 73 . . . Optics 116 | . . 43 73 . . . Terrain 362 | . 105 257 . . . . Structural 362 | . 105 257 . . . . Robot Analysis Total 3 | . 1 1 . . 1 . Derelict Logs Recovered . | . . . . . . . Drone Launches . | . . . . . . . Drone Recoveries . | . . . . . . . Exploration | -11 -10 -10 -7 -5 -4 -4 ------------- Run | Yrd Mat Sub Scr Fac Fac Gar Turns Passed 918 | . 122 301 143 40 196 116 Spaces Moved 792 | 1 165 212 120 34 134 126 Core 106 | 1 32 1 . . 13 59 Treads . | . . . . . . . Legs 150 | . . . . . 83 67 Wheels 536 | . 133 211 120 34 38 . Hover . | . . . . . . . Flight . | . . . . . . . Fastest Speed 50 | 50 50 50 120 120 50 50 Average Speed 95 | 50 74 86 120 120 113 87 Slowest Speed 120 | 50 80 120 120 120 120 120 Overloaded Moves . | . . . . . . . Propulsion Burnouts . | . . . . . . . Robots Hopped . | . . . . . . . Potential Cave-ins . | . . . . . . . Cave-ins Triggered . | . . . . . . . Exploration Rate (%) 13 | 2 35 8 17 2 3 30 Regions Visited 6 Branch Regions 2 Pre-discovered Areas . | . . . . . . . Known Exits Taken 1 | . . . . . 1 . Unknown Exits Taken 5 | 1 1 1 1 1 . . Scrap Searched 1 | . . . 1 . . . Spaces Dug . | . . . . . . . Terrain Destroyed . | . . . . . . . Melee . | . . . . . . . Projectile . | . . . . . . . AOE . | . . . . . . . Terrain Rammed . | . . . . . . . Walls Destroyed . | . . . . . . . Machines Disabled . | . . . . . . . Actions | -11 -10 -10 -7 -5 -4 -4 --------- Run | Yrd Mat Sub Scr Fac Fac Gar Total 943 | . 164 324 119 33 172 131 Wait 128 | . . 107 . . 21 . Move 784 | . 164 211 119 33 133 124 Hop . | . . . . . . . Pick Up 1 | . . 1 . . . . Fast Attach . | . . . . . . . Attach . | . . . . . . . Detach . | . . . . . . . Swap . | . . . . . . . Drop . | . . . . . . . Fire 8 | . . 5 . . 3 . Melee . | . . . . . . . Ram 22 | . . . . . 15 7 Kick . | . . . . . . . Crush . | . . . . . . . Escape Stasis . | . . . . . . . Rewire . | . . . . . . . Trap . | . . . . . . . Miscellaneous . | . . . . . . . Route ------- -11/Scrapyard -10/Materials (discovered 3 exits: [*Mat] / [*Min] / [*Sub]) -10/Subcaves (discovered 2 exits: [*Scr x2]) -7/Scraptown -5/Factory -4/Factory -4/Garrison (discovered 1 exit: [*Fac]) History --------- Turn | Location | Event 1 | -11/Scrapyard | Discovered new exit (range 0) 1 | -11/Scrapyard | Entered Materials 2 | -10/Materials | Met a group of wandering Federalists 43 | -10/Materials | Discovered new exit (range 14) 95 | -10/Materials | Discovered new exit (range 10) 97 | -10/Materials | Discovered new exit (range 11) 123 | -10/Materials | Entered Subcaves 124 | -10/Subcaves | Continued accompanying wandering Federalists (6) 124 | -10/Subcaves | Approached by a straggling Scientist 307 | -10/Subcaves | A swath of the cavern ceiling suddenly collapsed 338 | -10/Subcaves | Lost 3 allies 389 | -10/Subcaves | Lost 3 allies 424 | -10/Subcaves | Entered Scraptown 487 | -7/Scraptown | Visited Bundlers 560 | -7/Scraptown | Discovered new exit (range 5) 567 | -7/Scraptown | Entered Factory 588 | -5/Factory | Discovered new exit (range 12) 607 | -5/Factory | Entered another Factory area 754 | -4/Factory | Identified exit to Garrison 803 | -4/Factory | Entered Garrison 875 | -4/Garrison | Spotted B-86 Titan 879 | -4/Garrison | Triggered checkpoint 887 | -4/Garrison | Core integrity fell below 50% 898 | -4/Garrison | Discovered new exit (range 9) 902 | -4/Garrison | Attempted to access garrison exit controls, blocked by remote lockdown 914 | -4/Garrison | Core integrity fell below 20% 918 | -4/Garrison | System corruption reached 10% 919 | -4/Garrison | Destroyed by S-27 Virus with Autogun Last Messages --------------- 00893_ ZLP::H&A&J=B89O26X7A&OT5 00895_ Connecting with Garrison Terminal... 00895_ ALERT: Suspicious activity at Terminal G003. Transmitting hostile system tracking data. 00898_ EXIT=FOUND 00902_ Attempting to access garrison exit controls... 00902_ Remote lockdown engaged. 00909_ P-70 Sage resets P-70 Sage, system corruption cleaned. 00910_ Connecting with Garrison Terminal... 00910_ ALERT: Suspicious activity at Terminal G002. Transmitting hostile system tracking data. 00911_ Slammed into S-27 Virus. 00913_ Slammed into P-70 Sage. 00915_ Slammed into S-27 Virus. 00915_ Destabilizing: Core damaged (-34). 00916_ Slammed into P-70 Sage. Map ----- +----------------------------------------------------+ | ?????????????????????????????????????????????????? | | ?????????????????????????????????????????????????? | | ?????????????????????????????????????????????????? | | ?????????????????????????????????????????????????? | | ?????????????????????????????????????????????????? | | ?????????????????????????????????????????????????? | | ?????????????????????????????????????????????????? | | ?????????????????????????????????????????????????? | | ?????????????????????????????????????????????????? | | ?????????????????????????????????????????????????? | | ?????????????????????????????????????????????????? | | ?????????????????????????????????????????????????? | | ?????????????????????????????????????????????????? | | ?????????????????????????????????????????????????? | | ?????????????????????????????????????????????????? | | ?????????????????????????????????????????????????? | | ?????????????????????????????????????????????????? | | ??????????????????????######?????????????????????? | | ??????????????????????# #?????????????????????? | | ??????????????????????# < #?????????????????????? | | ??????????????????????# #?????????????????????? | | ??????????????????????### #?????????????????????? | | ????????????????????????# #?????????????????????? | | ????????????????????????# #?????????????????????? | | ????????????????????????# #?????????????????????? | | ??????????????????#######@ #???###???????????????? | | ??????????????????# #####T########????????? | | ??????????????????# ##### p #????????? | | ????????????????????????#pps% #????????? | | ????????????????????????####s######### #????????? | | ???????????????????????????#p#???????# #????????? | | ???????????????????????????#%#???????# #????????? | | ???????????????????????????# #???????# #????????? | | ??????????????????????????## #???????#% #????????? | | ??????????????????????????#" #???????# #????????? | | ??????????????????????????#T #???????# #????????? | | ??????????????????????????#""#??????## ##""""#### | | ??????????????????????????####??????# | | ????????????????????????????????????# | | ????????????????????????????????????# | | ????????????????????????????????????# #" ## | | ????????????????????????????????????# ## ## | | ????????????????????????????????????" | | ????????????????????????????????????" % | | ????????????????????????????????????" | | ????????????????????????????????????" | | ????????????????????????????????????# ##% ## | | ??????????????????????????########### ##%" ## | | ??????????????????????????# " | | ??????????????????????????# | +----------------------------------------------------+ Best States ------------- Heat Dissipation 55 Coolant Potential 50 Energy Generation 26 Energy Capacity 150 Matter Stores 100 Matter Capacity 100 Sight Range 19 Terrain Scan Range 14 Terrain Scan Density 85 Armor Coverage 800 Evasion (%) 55 Item Schematics ----------------- None Robot Schematics ------------------ None Fabricated ------------ Nothing Repaired ---------- Nothing Studied --------- None Alien Tech Used ----------------- None Achievements -------------- Civilization 2243 Strength In Numbers Challenges ------------ None Polymind | -11 -10 -10 -7 -5 -4 -4 ---------- Run | Yrd Mat Sub Scr Fac Fac Gar Hosts 3 | . 1 1 . . 1 . Combat Hostiles 2 | . . 1 . . 1 . Allies . | . . . . . . . Unique Host Classes 3 | . 1 1 . . 1 . Average Host Suspicion 29 | . 46 16 . 2 78 24 Unsuspicious Activity 18 | . 2 16 . . . . Returns to Shadow . | . . . . . . . Fuzzy Dispatches . | . . . . . . . Protomatter Created 97 | . 41 56 . . . . Used 98 | . 5 33 . . 60 . Decayed 68 | . 41 27 . . . . Highest Spend 60 | . 5 33 . . 60 . Top 5 Hosts by Kills: G-67 Veteran (-4/Factory: 1) Game ------ Seed DeuteriumDisposableCutter Manual? 0 Play Time 00:09:51 Cumulative 79.1 hours Start 2025.12.28 @ 17:00:25 End 2025.12.28 @ 17:08:45 Sessions 1 Manual Loads 0 Difficulty Rogue Special Mode Winter2022/Polymind Game No. 122 Rogue 98 Adventurer 20 Explorer 4 Win Type - Total 1 Types 0/0/0/1/0/0/0/0/0/0 Lore% 46 Gallery% 42 Achievement% 32 Wizard Run 0 Options --------- Layout 1 ASCII 0 Keyboard 0 Movement Numpad Keybinds 0 Fullscreen 2 Font 24/Smallcaps Map View 50x35 Zoom Use 0% Tactical HUD 1 Map Filters NONE Filters NONE Steam 1 RUN: cb840677-bb43-4e25-b60b-0a6825e32cd6